fUSD/lending_fUSD_20240407
["ID","MTS","AMOUNT","RATE_DAILY","PERIOD"]
[321761797,1712504798277,1038.24058336,0.00018447,2]
[321761798,1712504798428,151.0,0.00021918,7]
[321761799,1712504798566,151.0,0.00022,7]
[321761800,1712504798856,151.0,0.000225,7]
[321761801,1712504799156,151.0,0.000225,7]
[321761802,1712504802326,704.64333317,0.0001851,2]
[321761803,1712504803984,3006.61720449,0.00018447,2]
[321761804,1712504804006,21084.70987249,0.00018447,2]
[321761805,1712504804687,940.88907787,0.00018447,2]
[321761806,1712504806199,527.29787503,0.00018447,2]
[321761807,1712504807246,165.61,0.00017945,2]
[321761808,1712504807484,292.06930916,0.00018447,2]
[321761809,1712504812831,1290.6401497,0.0001851,2]
[321761810,1712504816338,537.88379237,0.0001851,2]
[321761811,1712504817626,1038.24058336,0.00018447,2]
[321761812,1712504821642,133.23547457,0.00018126,2]
[321761813,1712504821662,1251.14452543,0.00018126,2]
[321761815,1712504826834,1290.6401497,0.00018208,2]
[321761817,1712504844586,458.21532487,0.00017964,2]
[321761818,1712504844616,674.59467513,0.00017964,2]
[321761819,1712504844860,1132.81,0.00017969,2]
[321761820,1712504845068,1132.81,0.00017974,2]
[321761821,1712504845281,59.78532487,0.00017979,2]
[321761822,1712504845303,1073.02467513,0.00017979,2]
[321761823,1712504845508,1132.81,0.00017983,2]
[321761824,1712504845724,794.16532487,0.00017988,2]
[321761825,1712504845745,338.64467513,0.00017988,2]
[321761826,1712504846157,1132.81,0.00017993,2]
[321761827,1712504846372,1132.81,0.00017998,2]
[321761828,1712504846594,395.73532487,0.00018002,2]
[321761829,1712504846618,737.07467513,0.00018002,2]
[321761830,1712504846819,1132.81,0.00018007,2]
[321761831,1712504847049,1132.81,0.00018012,2]
[321761832,1712504847237,1132.81,0.00018017,2]
[321761833,1712504847612,1132.81,0.00018021,2]
[321761834,1712504847804,1132.81,0.00018026,2]
[321761835,1712504847889,1132.81,0.00018031,2]
[321761836,1712504848290,1132.81,0.00018035,2]
[321761837,1712504848557,1132.81,0.0001804,2]
[321761838,1712504848794,1132.81,0.00018045,2]
[321761839,1712504849055,1132.81,0.0001805,2]
[321761840,1712504849478,1132.81,0.00018054,2]
[321761841,1712504850801,525.24029402,0.00017968,2]
[321761842,1712504857526,1290.6401497,0.00018208,2]
[321761843,1712504858435,8733.67688355,0.00017968,2]
[321761844,1712504862754,748.40426388,0.00018207,2]
[321761845,1712504862786,151.0,0.00021918,7]
[321761846,1712504863157,151.0,0.00022,7]
[321761847,1712504863476,151.0,0.000225,7]
[321761848,1712504863813,151.0,0.000225,7]
[321761849,1712504864603,809.08158788,0.00018207,2]
[321761850,1712504872132,1038.24058336,0.00017968,2]
[321761851,1712504873627,154.585444,0.00021918,7]
[321761852,1712504874228,154.585444,0.00022,7]
[321761853,1712504874522,154.585444,0.000225,7]
[321761854,1712504874818,154.585444,0.000225,7]
[321761855,1712504875340,1290.6401497,0.00018208,2]
[321761856,1712504876532,250.0,0.0001799,2]
[321761857,1712504876778,748.40426388,0.00017249,2]
[321761858,1712504877125,154.585444,0.00021918,7]
[321761859,1712504877415,154.585444,0.00022,7]
[321761860,1712504877737,154.585444,0.000225,7]
[321761861,1712504878017,154.585436,0.000225,7]
[321761862,1712504879975,7482.64740264,0.00017968,2]
[321761863,1712504885965,4370.66,0.00018026,2]
[321761864,1712504887574,151.0,0.00021918,7]
[321761865,1712504887912,151.0,0.00022,7]
[321761866,1712504888137,1038.24058336,0.00017968,2]
[321761867,1712504888240,151.0,0.000225,7]
[321761868,1712504888270,183.04,0.00017958,2]
[321761869,1712504888576,151.0,0.000225,7]
[321761870,1712504893333,1290.6401497,0.00018208,2]
[321761871,1712504893970,7470.47823128,0.00017968,2]
[321761872,1712504901730,50000.0,0.0003,35]
[321761873,1712504903133,150.0,0.00017989,2]
[321761874,1712504904333,858.64913785,0.00017249,2]
[321761875,1712504906141,1038.24058336,0.00017968,2]
[321761876,1712504917585,1290.6401497,0.00018208,2]
[321761877,1712504921176,176.38,0.00017985,2]
[321761878,1712504924552,1038.24058336,0.00017968,2]
[321761879,1712504929037,1290.6401497,0.00018208,2]
[321761880,1712504929105,200.0,0.00017985,2]
[321761881,1712504931582,20927.434719,0.00022,4]
[321761882,1712504931608,27985.8383752,0.00022,4]
[321761883,1712504942153,843.68197137,0.00017968,2]
[321761884,1712504946121,-537.88379237,0.0001851,2]
[321761885,1712504946142,-884.1038948,0.00018511,2]
[321761886,1712504946163,-155.81,0.00018516,2]
[321761887,1712504946184,-150.0,0.00018521,2]
[321761888,1712504946207,-150.0,0.00018541,2]
[321761889,1712504946227,-518.13979023,0.00018542,2]
[321761890,1712504946250,-518.13979023,0.00018542,2]
[321761891,1712504946271,-518.13979023,0.00018542,2]
[321761892,1712504946292,-518.13979023,0.00018542,2]
[321761893,1712504946313,-518.13979023,0.00018542,2]
[321761894,1712504946334,-518.13979023,0.00018542,2]
[321761895,1712504946356,-518.13979023,0.00018542,2]
[321761896,1712504946376,-7226.7056,0.00018547,2]
[321761897,1712504946398,-155.81,0.00018573,2]
[321761898,1712504946420,-155.81,0.00018629,2]
[321761899,1712504946442,-180.81117582,0.00018645,2]
[321761900,1712504946462,-155.17496633,0.00018645,2]
[321761901,1712504946483,-1502.40196641,0.00018645,2]
[321761902,1712504946503,-287.53386216,0.00018645,2]
[321761903,1712504946523,-735.00807151,0.00018645,2]
[321761904,1712504946543,-2993.97,0.00018686,2]
[321761905,1712504946565,-155.81,0.00018686,2]
[321761906,1712504946585,-3374.18597777,0.00018691,2]
[321761907,1712504946604,-5806.62,0.00018692,2]
[321761908,1712504946625,-155.81,0.00018743,2]
[321761909,1712504946646,-620.30998039,0.0001875,2]
[321761910,1712504951847,952.67169562,0.00018208,2]
[321761911,1712504965102,-2559.469,0.0001875,2]
[321761912,1712504965175,-26932.22101961,0.0001875,2]
[321761913,1712504965202,-155.81,0.000188,2]
[321761914,1712504965223,-155.81,0.00018856,2]
[321761915,1712504965244,-155.81,0.00018913,2]
[321761916,1712504965264,-166.02,0.00018941,2]
[321761917,1712504965286,-155.81,0.0001897,2]
[321761918,1712504965306,-155.81,0.00019027,2]
[321761919,1712504965327,-155.0,0.0001907,2]
[321761920,1712504965348,-299.07,0.00019075,2]
[321761921,1712504965368,-1748.66629299,0.00019078,2]
[321761922,1712504965388,-155.81,0.00019084,2]
[321761923,1712504965409,-10503.14163715,0.00019097,2]
[321761924,1712504965429,-3096.14743643,0.00019097,2]
[321761925,1712504965449,-328.7451846,0.00019097,2]
[321761926,1712504965469,-155.81,0.0001914,2]
[321761927,1712504965490,-213.99164252,0.00019166,2]
[321761928,1712504965509,-155.0,0.00019166,2]
[321761929,1712504965528,-155.0,0.00019166,2]
[321761930,1712504965548,-210.94093551,0.00019166,2]
[321761931,1712504965719,-246.88854608,0.00019166,2]
[321761932,1712504965739,-661.24842281,0.00019166,2]
[321761933,1712504965758,-518.13979023,0.00019166,2]
[321761934,1712504965777,-537.88379237,0.00019166,2]
[321761935,1712504965797,-522.426809,0.00019167,2]
[321761936,1712504965817,-1783.84397071,0.00019167,2]
[321761937,1712504965837,-3268.0,0.00019167,2]
[321761938,1712504965858,-43463.59292791,0.00019168,2]
[321761939,1712504966775,500.0,0.00018293,2]
[321761940,1712504968125,-5976.84628106,0.00019168,2]
[321761951,1712505031818,-1000.0,0.00018706,2]
[321761952,1712505031827,-153.19839526,0.00018829,2]
[321761953,1712505031836,-6829.1,0.00018893,2]
[321761954,1712505031845,-1107.85,0.00018929,2]
[321761955,1712505031854,-24262.97241764,0.00019168,2]
[321761956,1712505031866,-701.55874719,0.00019168,2]
[321761957,1712505031877,-738.36762147,0.00019168,2]
[321761958,1712505031912,-10478.6396,0.00019168,2]
[321761959,1712505031924,-1447.21116505,0.00019168,2]
[321761960,1712505031960,-17285.80001,0.00019168,2]
[321761961,1712505031971,-17704.0,0.00019168,2]
[321761962,1712505032006,-339.49342103,0.00019168,2]
[321761963,1712505032060,-450.037073,0.00019168,2]
[321761964,1712505033073,-2432.04,0.00019168,2]
[321762000,1712505037811,-424.88308538,0.00019168,2]
[321762001,1712505037827,-3268.0,0.00019168,2]
[321762002,1712505037838,-251.32750497,0.00019168,2]
[321762003,1712505037851,-33354.51646744,0.00019168,2]
[321762004,1712505037862,-3714.13498801,0.00019168,2]
[321762005,1712505037874,-3493.37507738,0.00019168,2]
[321762006,1712505037896,-34722.4373291,0.00019168,2]
[321762007,1712505037908,-5633.76500596,0.00019168,2]
[321762008,1712505037919,-1418.72499995,0.00019168,2]
[321762009,1712505037931,-1496.70599484,0.00019168,2]
[321762010,1712505038005,-636.75,0.00019168,2]
[321762011,1712505038017,-5354.07575359,0.00019168,2]
[321762012,1712505038033,-29602.73736424,0.00019168,2]
[321762013,1712505038045,-353.33450113,0.00019168,2]
[321762014,1712505038061,-2427.54055092,0.00019168,2]
[321762015,1712505038078,-69485.99999999,0.00019168,2]
[321762016,1712505038142,-365772.94851516,0.00019168,2]
[321762017,1712505038151,-200.0,0.00019178,2]
[321762018,1712505038160,-164.693537,0.00019178,2]
[321762019,1712505038169,-155.81,0.00019197,2]
[321762020,1712505038179,-155.81,0.00019254,2]
[321762021,1712505038189,-1000.0,0.0001927,2]
[321762022,1712505038199,-765.95,0.0001927,2]
[321762024,1712505038209,-499.99,0.0001927,2]
[321762025,1712505038219,-10503.14163706,0.00019297,2]
[321762027,1712505038229,-3096.1474364,0.00019297,2]
[321762028,1712505038238,-155.81,0.00019311,2]
[321762029,1712505038248,-300.0,0.00019334,2]
[321762030,1712505038259,-1748.66629298,0.00019338,2]
[321762031,1712505038270,-1391.19,0.00019339,2]
[321762032,1712505038280,-13344.48,0.00019339,2]
[321762033,1712505038289,-6166.45,0.00019339,2]
[321762034,1712505038300,-227.81,0.00019339,2]
[321762035,1712505038309,-6773.18,0.00019339,2]
[321762036,1712505038318,-155.81,0.00019367,2]
[321762037,1712505038327,-155.81,0.00019424,2]
[321762038,1712505038336,-155.81,0.00019481,2]
[321762039,1712505038346,-10503.14163706,0.00019498,2]
[321762040,1712505038355,-3096.1474364,0.00019498,2]
[321762041,1712505038364,-1748.66629298,0.00019599,2]
[321762042,1712505038374,-10503.14163706,0.00019698,2]
[321762043,1712505038384,-3096.1474364,0.00019698,2]
[321762044,1712505038394,-179.71752547,0.00019835,2]
[321762045,1712505038406,-285.75356119,0.00019835,2]
[321762046,1712505038416,-895.8539202,0.00019839,2]
[321762047,1712505038426,-1748.66629298,0.00019859,2]
[321762048,1712505038435,-186.54407456,0.00019898,2]
[321762049,1712505038445,-517.06688817,0.00019898,2]
[321762050,1712505038454,-10503.14163706,0.00019898,2]
[321762051,1712505038463,-3096.1474364,0.00019898,2]
[321762052,1712505038472,-217588.67160909,0.000199,2]
[321762053,1712505038482,-197938.97157729,0.00019928,2]
[321762054,1712505038491,-895.85392017,0.00019935,2]
[321762055,1712505038501,-728.27718005,0.0002,2]
[321762056,1712505038511,-300.31625048,0.0002,2]
[321762057,1712505038520,-155.10541494,0.0002,2]
[321762058,1712505038529,-164.693537,0.0002,2]
[321762059,1712505038538,-895.85392017,0.00020032,2]
[321762060,1712505038547,-10503.14163706,0.00020099,2]
[321762061,1712505038557,-3096.1474364,0.00020099,2]
[321762062,1712505038567,-285.75356118,0.00020101,2]
[321762063,1712505038577,-1748.66629298,0.00020119,2]
[321762064,1712505038586,-895.85392017,0.00020128,2]
[321762065,1712505038595,-242.98,0.00020224,2]
[321762066,1712505038604,-895.85392017,0.00020225,2]
[321762067,1712505038613,-2314.67765459,0.00020271,2]
[321762068,1712505038622,-10503.14163706,0.00020299,2]
[321762069,1712505038631,-3096.1474364,0.00020299,2]
[321762070,1712505038640,-895.85392017,0.00020321,2]
[321762071,1712505038649,-285.75356118,0.00020368,2]
[321762072,1712505038658,-1748.66629298,0.00020379,2]
[321762073,1712505038668,-210.0,0.00020395,2]
[321762074,1712505038676,-895.85392017,0.00020418,2]
[321762075,1712505038686,-10503.14163706,0.00020499,2]
[321762076,1712505038695,-3096.1474364,0.00020499,2]
[321762077,1712505038704,-895.85392017,0.00020514,2]
[321762078,1712505038714,-895.85392017,0.00020611,2]
[321762079,1712505038723,-285.75356118,0.00020634,2]
[321762080,1712505038732,-1748.66629298,0.0002064,2]
[321762081,1712505038741,-165.61,0.00020685,2]
[321762082,1712505038750,-1298.2356,0.0002069,2]
[321762083,1712505038759,-7568.5601,0.00020698,2]
[321762084,1712505038768,-10503.14163706,0.000207,2]
[321762085,1712505038777,-3096.1474364,0.000207,2]
[321762086,1712505038787,-300.0,0.00020704,2]
[321762087,1712505038796,-895.85392017,0.00020707,2]
[321762088,1712505038805,-1298.2356,0.0002073,2]
[321762089,1712505038814,-37452.5113,0.00020735,2]
[321762090,1712505038823,-4370.66,0.00020765,2]
[321762091,1712505038832,-15643.01660687,0.00020796,2]
[321762092,1712505038841,-173.70619216,0.00020797,2]
[321762093,1712505038850,-152.23157749,0.00020797,2]
[321762094,1712505038859,-39937.345,0.00020798,2]
[321762095,1712505038869,-1302.13006648,0.000208,2]
[321762096,1712505038880,-155.22795944,0.000208,2]
[321762097,1712505038889,-1298.2356,0.000208,2]
[321762098,1712505038898,-759.31842871,0.000208,2]
[321762099,1712505038909,-222.16644446,0.000208,2]
[321762100,1712505038918,-2278.63670991,0.000208,2]
[321762101,1712505038927,-2030.96393414,0.000208,2]
[321762102,1712505038937,-3486.73072268,0.000208,3]
[321762103,1712505038947,-2314.67765459,0.000208,2]
[321762104,1712505038957,-152.23157734,0.00020801,2]
[321762105,1712505038966,-895.85392017,0.00020804,2]
[321762106,1712505038975,-152.23157734,0.00020806,2]
[321762107,1712505038985,-152.23157734,0.0002081,2]
[321762108,1712505039151,-152.23157734,0.00020815,2]
[321762109,1712505039162,-152.23157734,0.00020819,2]
[321762110,1712505039171,-164.693537,0.00020822,2]
[321762111,1712505039180,-152.23157734,0.00020824,2]
[321762112,1712505039189,-3486.73072264,0.00020825,3]
[321762113,1712505039199,-152.23157734,0.00020828,2]
[321762114,1712505039208,-152.23157734,0.00020833,2]
[321762115,1712505039218,-152.23157734,0.00020837,2]
[321762116,1712505039228,-152.23157734,0.00020842,2]
[321762117,1712505039237,-152.23157734,0.00020846,2]
[321762118,1712505039246,-155.22795942,0.0002085,2]
[321762119,1712505039255,-759.3184287,0.0002085,2]
[321762120,1712505039266,-2278.63670991,0.0002085,2]
[321762121,1712505039278,-2030.96393413,0.0002085,2]
[321762122,1712505039288,-152.23157734,0.00020851,2]
[321762123,1712505039297,-152.23157734,0.00020855,2]
[321762124,1712505039307,-152.23157734,0.0002086,2]
[321762125,1712505039315,-152.23157734,0.00020864,2]
[321762126,1712505039325,-152.23157734,0.00020869,2]
[321762127,1712505039335,-152.23157734,0.00020873,2]
[321762128,1712505039344,-152.23157734,0.00020878,2]
[321762129,1712505039354,-2037.93771575,0.00020879,2]
[321762130,1712505039363,-1298.2356,0.0002088,2]
[321762131,1712505039372,-152.23157734,0.00020882,2]
[321762132,1712505039381,-152.23157734,0.00020887,2]
[321762133,1712505039391,-356.39421439,0.00020887,2]
[321762134,1712505039400,-152.23157734,0.00020891,2]
[321762135,1712505039409,-152.23157734,0.00020896,2]
[321762136,1712505039419,-223.39629663,0.00020897,2]
[321762137,1712505039429,-300.0,0.00020897,2]
[321762138,1712505039440,-300.0,0.00020897,2]
[321762139,1712505039449,-300.0,0.00020897,2]
[321762140,1712505039458,-300.0,0.00020897,2]
[321762141,1712505039468,-300.0,0.00020897,2]
[321762142,1712505039477,-300.0,0.00020897,2]
[321762143,1712505039486,-300.0,0.00020897,2]
[321762144,1712505039495,-304.57157206,0.00020898,2]
[321762145,1712505039505,-218.10817239,0.00020898,2]
[321762146,1712505039515,-157.09483559,0.00020898,2]
[321762147,1712505039524,-206.23207189,0.00020898,2]
[321762148,1712505039533,-200.61274342,0.00020898,2]
[321762149,1712505039543,-873.90846262,0.00020898,2]
[321762150,1712505039553,-10422.49529811,0.00020898,2]
[321762152,1712505039562,-629.42074222,0.00020898,2]
[321762153,1712505039571,-274.86977578,0.00020898,2]
[321762155,1712505039581,-881.36334579,0.00020898,2]
[321762157,1712505039590,-400.0,0.00020898,2]
[321762159,1712505039599,-155.62348997,0.00020898,2]
[321762161,1712505039609,-221.59943082,0.00020898,2]
[321762162,1712505039618,-210.37739858,0.00020898,2]
[321762163,1712505039628,-155.046986,0.00020898,2]
[321762164,1712505039637,-331.35254529,0.00020898,2]
[321762165,1712505039646,-542.62975799,0.00020898,2]
[321762166,1712505039655,-212.59855795,0.00020898,2]
[321762167,1712505039664,-177.53843708,0.00020898,2]
[321762169,1712505039673,-169.64026488,0.00020898,2]
[321762171,1712505039683,-544.63885103,0.00020898,2]
[321762173,1712505039693,-203.60014587,0.00020898,2]
[321762175,1712505039706,-273.73705132,0.00020898,2]
[321762177,1712505039715,-228.69841838,0.00020898,2]
[321762179,1712505039725,-244.97936461,0.00020898,2]
[321762181,1712505039735,-189.8909477,0.00020898,2]
[321762183,1712505039747,-2621.28814961,0.00020898,2]
[321762185,1712505039756,-295.12321122,0.00020898,2]
[321762188,1712505039767,-156.0026956,0.00020898,3]
[321762190,1712505039777,-155.0,0.00020898,2]
[321762192,1712505039786,-211.84851613,0.00020898,2]
[321762194,1712505039796,-157.31336717,0.00020898,2]
[321762196,1712505039807,-261.16504767,0.00020898,2]
[321762198,1712505039817,-184.99361137,0.00020898,2]
[321762200,1712505039827,-266.51965949,0.00020898,2]
[321762202,1712505039839,-404.47743846,0.00020898,2]
[321762204,1712505039849,-284.24425826,0.00020898,2]
[321762206,1712505039859,-163.70329151,0.00020898,2]
[321762208,1712505039870,-155.0,0.00020898,2]
[321762210,1712505039881,-205.36093141,0.00020898,2]
[321762211,1712505039890,-155.0,0.00020898,2]
[321762212,1712505039900,-166.88650538,0.00020898,2]
[321762213,1712505039909,-240.02740078,0.00020898,2]
[321762214,1712505039919,-155.20654588,0.00020898,2]
[321762215,1712505039928,-1211.3956422,0.00020898,2]
[321762216,1712505039937,-244.98397099,0.00020898,2]
[321762217,1712505039947,-174.27613434,0.00020898,2]
[321762218,1712505039956,-601.30438827,0.00020898,2]
[321762219,1712505039965,-155.65339939,0.00020898,2]
[321762220,1712505039975,-264.23455154,0.00020898,2]
[321762221,1712505039985,-155.0,0.00020898,2]
[321762222,1712505039994,-1222.24259155,0.00020898,2]
[321762223,1712505040004,-176.75298616,0.00020898,2]
[321762224,1712505040017,-200.01232208,0.00020898,2]
[321762225,1712505040026,-156.90982687,0.00020898,2]
[321762226,1712505040035,-156.09654372,0.00020898,2]
[321762227,1712505040045,-155.93527969,0.00020898,2]
[321762228,1712505040054,-155.31508233,0.00020898,2]
[321762229,1712505040063,-303.65133067,0.00020898,2]
[321762230,1712505040073,-643.95022803,0.00020898,2]
[321762231,1712505040082,-570.89706792,0.00020898,2]
[321762232,1712505040091,-256.02612092,0.00020898,2]
[321762233,1712505040101,-171.90686635,0.00020898,2]
[321762234,1712505040112,-155.0,0.00020898,2]
[321762235,1712505040121,-254.65583011,0.00020898,2]
[321762236,1712505040131,-156.56179884,0.00020898,2]
[321762237,1712505040140,-485.28929587,0.00020898,2]
[321762238,1712505040150,-208.03176831,0.00020898,2]
[321762239,1712505040159,-252.0032256,0.00020898,2]
[321762240,1712505040169,-262.83183104,0.00020898,2]
[321762241,1712505040178,-312.26608832,0.00020898,2]
[321762242,1712505040187,-200.0,0.00020898,2]
[321762243,1712505040198,-200.0,0.00020898,2]
[321762244,1712505040207,-200.0,0.00020898,2]
[321762245,1712505040216,-200.0,0.00020898,2]
[321762246,1712505040226,-163.0,0.00020898,2]
[321762247,1712505040236,-169723.45214459,0.00020898,2]
[321762248,1712505040245,-2875.86637624,0.00020898,2]
[321762249,1712505040255,-2000.0,0.00020898,2]
[321762250,1712505040266,-200.0,0.00020898,2]
[321762251,1712505040276,-207081.0785093,0.00020898,2]
[321762252,1712505040285,-1298.2356,0.00020898,2]
[321762253,1712505040294,-1298.2356,0.00020898,2]
[321762254,1712505040303,-579204.6629602,0.000209,2]
[321762255,1712505040313,-604.48226412,0.000209,2]
[321762256,1712505040323,-743533.58718933,0.000209,2]
[321762257,1712505040333,-1000.0,0.000209,2]
[321762258,1712505040342,-1856.90490674,0.000209,2]
[321762259,1712505040352,-160.0,0.000209,2]
[321762260,1712505040362,-152.23157734,0.000209,2]
[321762261,1712505040372,-155.22795942,0.000209,2]
[321762262,1712505040382,-285.75356118,0.000209,2]
[321762264,1712505040392,-10503.14163706,0.000209,2]
[321762265,1712505040401,-895.85392017,0.000209,2]
[321762266,1712505040411,-3096.1474364,0.000209,2]
[321762267,1712505040421,-759.3184287,0.000209,2]
[321762268,1712505040430,-222.16644446,0.000209,2]
[321762269,1712505040440,-1748.66629298,0.000209,2]
[321762270,1712505040449,-3600.7222,0.000209,2]
[321762271,1712505040458,-2278.63670991,0.000209,2]
[321762272,1712505040468,-2030.96393413,0.000209,2]
[321762273,1712505040477,-500.0,0.00020904,2]
[321762274,1712505040487,-242.98,0.00020939,2]
[321762275,1712505040496,-240.08283614,0.00020998,2]
[321762276,1712505040505,-389.47153468,0.00020999,2]
[321762278,1712505040516,-233.68292081,0.00020999,2]
[321762280,1712505040526,-155.78861387,0.00020999,2]
[321762281,1712505040535,-164.3276537,0.00020999,2]
[321762283,1712505040544,-689856.15649215,0.00020999,2]
[321762284,1712505040553,-16748467.18940205,0.00021,2]
[321762285,1712505040563,-21932.85447516,0.00021,2]
[321762286,1712505040572,-14627854.16305701,0.00021,2]
[321762287,1712505041173,-2120771.6156642,0.00021,2]
[321762288,1712505041183,-200.0,0.00021,2]
[321762289,1712505041192,-1859.18,0.00021,2]
[321762290,1712505041202,-2463.02,0.00021,2]
[321762291,1712505041211,-1800.0,0.00021,3]
[321762292,1712505041221,-231.58246,0.0002103,2]
[321762293,1712505041231,-800.0,0.0002103,2]
[321762294,1712505041240,-500.0,0.0002103,2]
[321762295,1712505041250,-1000.0,0.00021044,2]
[321762296,1712505041260,-2000.0,0.00021107,2]
[321762297,1712505041270,-167.0,0.00021137,2]
[321762298,1712505041280,-1352.4643745,0.00021185,2]
[321762299,1712505041290,-165.52431145,0.00021185,2]
[321762300,1712505041301,-12476.44549394,0.000212,2]
[321762301,1712505041310,-12476.44549394,0.000212,2]
[321762302,1712505041320,-12476.44549394,0.000212,2]
[321762303,1712505041330,-12476.44549394,0.000212,2]
[321762304,1712505041340,-12476.44549394,0.000212,2]
[321762305,1712505041351,-12476.44549394,0.000212,2]
[321762306,1712505041361,-12476.44549394,0.000212,2]
[321762307,1712505041371,-12476.44549394,0.000212,2]
[321762308,1712505041381,-12476.44549394,0.000212,2]
[321762309,1712505041391,-12476.44449394,0.000212,2]
[321762310,1712505041402,-1034.76380601,0.000212,2]
[321762311,1712505041412,-500.0,0.00021228,2]
[321762312,1712505041421,-10000.0,0.00021268,2]
[321762313,1712505041431,-1167.70204627,0.00021295,2]
[321762314,1712505041441,-2000.0,0.00021318,2]
[321762315,1712505041451,-299.07,0.00021339,2]
[321762316,1712505041460,-155.0,0.00021375,2]
[321762317,1712505041470,-150.01,0.00021399,2]
[321762318,1712505041479,-980.82934092,0.00021399,2]
[321762319,1712505041489,-934.0,0.00021493,2]
[321762320,1712505041499,-545.0,0.00021493,2]
[321762321,1712505041508,-543.0,0.00021493,2]
[321762322,1712505041519,-2000.0,0.00021531,2]
[321762323,1712505041529,-164.693537,0.00021644,2]
[321762324,1712505041538,-242.98,0.00021654,2]
[321762325,1712505041548,-271.62965372,0.00021747,2]
[321762326,1712505041557,-1404.80102661,0.000219,2]
[321762327,1712505041567,-1404.80102661,0.000219,2]
[321762328,1712505041576,-1404.80102661,0.000219,2]
[321762329,1712505041586,-1404.80102661,0.000219,2]
[321762330,1712505041595,-1404.80102661,0.000219,2]
[321762331,1712505041606,-1404.80102661,0.000219,2]
[321762332,1712505041617,-1404.80102661,0.000219,2]
[321762333,1712505041627,-1404.80102661,0.000219,2]
[321762334,1712505041639,-1404.80102661,0.000219,2]
[321762335,1712505041648,-1404.80102661,0.000219,2]
[321762336,1712505041657,-1404.80102661,0.000219,2]
[321762337,1712505041667,-1404.80102661,0.000219,2]
[321762338,1712505041676,-1404.80102661,0.000219,2]
[321762339,1712505041686,-1404.80102661,0.000219,2]
[321762340,1712505041695,-1404.80102661,0.000219,2]
[321762341,1712505041704,-1404.80102661,0.000219,2]
[321762342,1712505041714,-1404.80102661,0.000219,2]
[321762343,1712505041723,-1404.80102661,0.000219,2]
[321762344,1712505041732,-1404.80102661,0.000219,2]
[321762345,1712505041741,-1404.80102661,0.000219,2]
[321762346,1712505041751,-1404.80102661,0.000219,2]
[321762347,1712505041760,-1404.80102661,0.000219,2]
[321762348,1712505041770,-1404.80102661,0.000219,2]
[321762349,1712505041781,-1404.80102661,0.000219,2]
[321762350,1712505041790,-1404.80102661,0.000219,2]
[321762351,1712505041799,-1404.80102661,0.000219,2]
[321762352,1712505041808,-1404.80102661,0.000219,2]
[321762353,1712505041817,-1404.80102661,0.000219,2]
[321762354,1712505041826,-1404.80102661,0.000219,2]
[321762355,1712505041837,-1404.80102661,0.000219,2]
[321762356,1712505041847,-207.88455727,0.000219,2]
[321762357,1712505041856,-790.59438754,0.000219,2]
[321762358,1712505041866,-162.11590932,0.000219,2]
[321762359,1712505041875,-162.11590932,0.000219,2]
[321762360,1712505041884,-162.11590932,0.000219,2]
[321762361,1712505041894,-162.11590932,0.000219,2]
[321762362,1712505041904,-162.11590932,0.000219,2]
[321762363,1712505041913,-162.11590932,0.000219,2]
[321762364,1712505041922,-162.11590932,0.000219,2]
[321762365,1712505041932,-162.11590932,0.000219,2]
[321762366,1712505041942,-162.11590932,0.000219,2]
[321762367,1712505041952,-162.11590932,0.000219,2]
[321762368,1712505041962,-162.11590932,0.000219,2]
[321762369,1712505041973,-162.11590932,0.000219,2]
[321762370,1712505041983,-162.11590932,0.000219,2]
[321762371,1712505041993,-162.11590932,0.000219,2]
[321762372,1712505042003,-162.11590932,0.000219,2]
[321762373,1712505042014,-162.11590932,0.000219,2]
[321762374,1712505042024,-162.11590932,0.000219,2]
[321762375,1712505042034,-162.11590932,0.000219,2]
[321762376,1712505042044,-162.11590932,0.000219,2]